bitfinex/quotes_BTCUSD_20240101
["timestamp","ask_amount","ask_price","bid_price","bid_amount"]
[1704135638094,0.003,43175.0,43170.0,0.01]
[1704135639009,0.004,43176.0,43170.0,0.01]
[1704135639233,0.008,43176.0,43171.0,0.2283]
[1704135639630,0.004,43176.0,43171.0,0.2283]
[1704135640088,0.003,43175.0,43171.0,0.2283]
[1704135640758,0.004,43176.0,43171.0,0.2283]
[1704135640970,0.008,43176.0,43171.0,0.2283]
[1704135641422,0.004,43176.0,43171.0,0.2283]
[1704135641631,0.003,43175.0,43171.0,0.2283]
[1704135641830,0.004,43176.0,43171.0,0.2283]
[1704135642040,0.486199,43178.0,43171.0,0.2283]
[1704135642252,0.003,43175.0,43171.0,0.2283]
[1704135643151,0.004,43176.0,43171.0,0.2283]
[1704135643361,0.486199,43178.0,43171.0,0.2283]
[1704135643578,0.004,43176.0,43171.0,0.2283]
[1704135643987,0.490199,43178.0,43171.0,0.2283]
[1704135644193,0.46321,43177.0,43171.0,0.2283]
[1704135644628,0.003,43175.0,43171.0,0.2283]
[1704135644848,0.46321,43177.0,43171.0,0.2283]
[1704135645530,0.003,43175.0,43171.0,0.2283]
[1704135645995,0.46321,43177.0,43171.0,0.2283]
[1704135646498,0.46921,43177.0,43171.0,0.2283]
[1704135646734,0.003,43175.0,43171.0,0.2283]
[1704135647193,0.006,43175.0,43171.0,0.2283]
[1704135647424,0.003,43175.0,43171.0,0.2283]
[1704135648261,0.006,43175.0,43171.0,0.2283]
[1704135651551,0.006,43175.0,43173.0,0.01]
[1704135651552,0.003,43175.0,43173.0,0.01]
[1704135652004,0.006,43175.0,43174.0,0.2339]
[1704135652258,0.003,43175.0,43174.0,0.2339]
[1704135652756,0.004,43175.0,43174.0,0.2339]
[1704135652991,0.001,43175.0,43174.0,0.2339]
[1704135653259,0.003,43175.0,43174.0,0.2339]
[1704135653498,0.001,43175.0,43174.0,0.2339]
[1704135653710,0.02762336,43180.0,43174.0,0.2339]
[1704135653915,0.02762336,43180.0,43174.0,0.2369]
[1704135654120,0.46316,43182.0,43174.0,0.2339]
[1704135654332,0.46316,43182.0,43174.0,0.2399]
[1704135654761,0.46316,43182.0,43174.0,0.2339]
[1704135654977,0.002,43180.0,43174.0,0.2399]
[1704135655382,0.002,43180.0,43174.0,0.2339]
[1704135655604,0.002,43180.0,43174.0,0.47711711]
[1704135655808,0.002,43180.0,43177.0,0.2]
[1704135656236,0.05449133,43185.0,43178.0,0.2309]
[1704135656449,0.001,43180.0,43178.0,0.2309]
[1704135657143,0.003,43180.0,43178.0,0.2309]
[1704135657402,0.003,43180.0,43179.0,0.01]
[1704135657858,0.0263,43185.0,43179.0,0.01]
[1704135658542,0.0263,43185.0,43179.0,0.21]
[1704135658763,0.0263,43185.0,43181.0,0.01]
[1704135659256,0.0333,43185.0,43182.0,0.2361]
[1704135659710,0.0263,43185.0,43182.0,0.2361]
[1704135660182,0.0303,43185.0,43182.0,0.2361]
[1704135660414,0.0343,43185.0,43182.0,0.2361]
[1704135660880,0.0303,43185.0,43182.0,0.2361]
[1704135661104,0.0343,43185.0,43182.0,0.2361]
[1704135661332,0.0263,43185.0,43182.0,0.2361]
[1704135661562,0.0303,43185.0,43182.0,0.2361]
[1704135661840,0.0303,43185.0,43180.0,0.2232]
[1704135662078,0.463145,43183.0,43176.0,0.2232]
[1704135662316,0.463145,43183.0,43182.0,0.001]
[1704135662767,0.463145,43183.0,43176.0,0.2232]
[1704135663245,0.463145,43183.0,43182.0,0.001]
[1704135663708,0.25621711,43184.0,43182.0,0.001]
[1704135663709,0.36117989,43184.0,43182.0,0.001]
[1704135663915,0.463145,43183.0,43182.0,0.001]
[1704135664183,0.69636211,43183.0,43182.0,0.001]
[1704135665309,1.07459126,43183.0,43172.0,0.2232]
[1704135665312,1.37759126,43183.0,43172.0,0.2232]
[1704135665315,0.1,43178.0,43163.0,0.05]
[1704135665317,0.1,43178.0,43163.0,0.06]
[1704135665551,0.463245,43174.0,43164.0,0.2329]
[1704135665830,0.69646211,43174.0,43163.0,0.06]
[1704135666047,0.69646211,43174.0,43164.0,0.2329]
[1704135667436,0.23321711,43174.0,43164.0,0.2329]
[1704135667671,0.69646611,43174.0,43164.0,0.2329]
[1704135668174,0.005,43174.0,43165.0,0.058]
[1704135668754,0.005,43174.0,43168.0,0.01]
[1704135669097,0.005,43174.0,43169.0,0.2396]
[1704135669312,0.463216,43177.0,43169.0,0.2396]
[1704135669523,0.023,43176.0,43169.0,0.2396]
[1704135669928,0.005,43174.0,43173.0,0.2]
[1704135670364,0.763134,43184.0,43173.0,0.2]
[1704135670568,0.005,43176.0,43173.0,0.2]
[1704135670780,0.463134,43184.0,43174.0,0.2319]
[1704135671425,0.463134,43184.0,43174.0,0.2419]
[1704135671641,0.463134,43184.0,43174.0,0.28708]
[1704135671847,0.463134,43184.0,43174.0,0.2419]
[1704135672097,0.002,43176.0,43174.0,0.2419]
[1704135673199,0.005,43176.0,43174.0,0.2419]
[1704135673419,0.002,43176.0,43174.0,0.2419]
[1704135674044,0.463134,43184.0,43174.0,0.2459]
[1704135674251,0.463134,43184.0,43174.0,0.2419]
[1704135674463,0.470134,43184.0,43174.0,0.2429]
[1704135674895,0.470134,43184.0,43174.0,0.2419]
[1704135674896,0.463134,43184.0,43174.0,0.2419]
[1704135675101,0.0263,43185.0,43178.0,0.1]
[1704135675313,0.007,43184.0,43179.0,0.01]
[1704135675531,0.007,43184.0,43179.0,0.2763]
[1704135675742,0.007,43184.0,43179.0,0.2316]
[1704135675962,0.007,43184.0,43179.0,0.27654]
[1704135676171,0.012,43184.0,43180.0,0.01]
[1704135676375,0.007,43184.0,43180.0,0.01]
[1704135676585,0.0263,43185.0,43181.0,0.01]
[1704135676787,0.004,43184.0,43181.0,0.01]
[1704135676997,0.0343,43185.0,43181.0,0.01]
[1704135677419,0.0263,43185.0,43181.0,0.01]
[1704135677897,0.0263,43185.0,43181.0,0.011]
[1704135678984,0.0263,43185.0,43181.0,0.012]
[1704135679184,0.0263,43185.0,43181.0,0.011]
[1704135679420,0.489482,43189.0,43181.0,0.010063]
[1704135679421,0.472082,43189.0,43181.0,0.010063]
[1704135680494,0.477082,43189.0,43181.0,0.010063]
[1704135680709,0.477082,43189.0,43181.0,0.01]
[1704135680946,0.482082,43189.0,43181.0,0.01]
[1704135685353,0.482082,43189.0,43180.0,0.01]
[1704135685552,0.482082,43189.0,43181.0,0.01]
[1704135686069,0.35621711,43188.0,43176.0,0.01]
[1704135686281,0.463155,43182.0,43176.0,0.2243]
[1704135686496,0.463177,43180.0,43176.0,0.2243]
[1704135686694,0.23321711,43179.0,43171.0,0.2243]
[1704135686902,0.29465711,43179.0,43171.0,0.2243]
[1704135687316,0.0582,43178.0,43171.0,0.2243]
[1704135687499,0.0582,43178.0,43176.0,0.005]
[1704135687946,0.521402,43178.0,43171.0,0.2243]
[1704135688134,0.521402,43178.0,43164.0,0.092745]
[1704135688363,0.702902,43178.0,43171.0,0.001]
[1704135688581,0.05316,43177.0,43171.0,0.001]
[1704135689230,0.05316,43177.0,43176.0,0.001]
[1704135689461,0.74959111,43177.0,43176.0,0.001]
[1704135689724,0.74959111,43177.0,43164.0,0.2243]
[1704135689972,0.69643911,43176.0,43164.0,0.2243]
[1704135690427,0.463231,43175.0,43164.0,0.2243]
[1704135690641,0.532231,43175.0,43164.0,0.2243]
[1704135691076,0.05718,43174.0,43164.0,0.2253]
[1704135691326,0.75364211,43174.0,43164.0,0.2253]
[1704135691557,0.69647011,43173.0,43164.0,0.2253]
[1704135691769,0.69647011,43173.0,43164.0,0.001]
[1704135691770,0.1,43170.0,43164.0,0.001]
[1704135691982,0.463329,43166.0,43164.0,0.001]
[1704135692409,0.463329,43166.0,43155.0,0.233]
[1704135692651,0.29921711,43169.0,43155.0,0.233]
[1704135692652,0.30029711,43165.0,43155.0,0.233]
[1704135693076,0.30029711,43165.0,43164.0,0.001]
[1704135693313,0.69655511,43165.0,43164.0,0.001]
[1704135693741,0.76201511,43165.0,43164.0,0.001]
[1704135694619,0.76901511,43165.0,43164.0,0.002]
[1704135694831,0.76901511,43165.0,43164.0,0.001]
[1704135695272,0.77601511,43165.0,43164.0,0.001]
[1704135695503,0.70355511,43165.0,43164.0,0.001]
[1704135695957,0.77109511,43165.0,43164.0,0.002]
[1704135697083,1.42326069,43165.0,43164.0,0.002]
[1704135697484,1.52820069,43165.0,43164.0,0.002]
[1704135698023,1.43838069,43165.0,43164.0,0.002]
[1704135698404,1.43138069,43165.0,43164.0,0.001]
[1704135698812,2.08978069,43165.0,43164.0,0.001]
[1704135699030,0.09988558,43161.0,43151.0,0.2365]
[1704135699257,0.463413,43158.0,43151.0,0.2365]
[1704135699505,0.69664211,43157.0,43151.0,0.2365]
[1704135700450,0.69664211,43157.0,43151.0,0.2375]
[1704135700682,0.463435,43156.0,43151.0,0.2375]
[1704135701143,0.23321711,43157.0,43151.0,0.2375]
[1704135701389,0.463458,43154.0,43151.0,0.001]
[1704135701637,0.69667511,43154.0,43148.0,0.2268]
[1704135701874,0.69667511,43154.0,43148.0,0.32008685]
[1704135702097,0.69667511,43154.0,43149.0,0.09328685]
[1704135702328,0.23321711,43154.0,43151.0,0.001]
[1704135702564,0.69767811,43154.0,43152.0,0.09328685]
[1704135702793,0.69667811,43154.0,43152.0,0.09328685]
[1704135703052,0.69667811,43154.0,43148.0,0.2268]
[1704135703053,0.69867811,43154.0,43148.0,0.2268]
[1704135703279,0.23321711,43153.0,43148.0,0.2268]
[1704135703516,0.46351,43149.0,43141.0,0.6624]
[1704135703760,0.463548,43146.0,43142.0,0.2268]
[1704135704027,0.69676511,43146.0,43142.0,0.2268]
[1704135705858,0.23521711,43146.0,43142.0,0.2268]
[1704135706100,0.23721711,43146.0,43142.0,0.2268]
[1704135706881,0.70076711,43146.0,43142.0,0.2268]
[1704135711674,0.04518,43145.0,43142.0,0.2268]
[1704135711882,0.74990711,43146.0,43142.0,0.2268]
[1704135712546,0.74590711,43146.0,43142.0,0.2268]
[1704135712757,0.002,43145.0,43142.0,0.2268]
[1704135712956,0.001,43145.0,43142.0,0.2268]
[1704135714002,0.69876711,43146.0,43142.0,0.2268]
[1704135714819,0.001,43145.0,43142.0,0.2268]
[1704135715599,0.69676711,43146.0,43142.0,0.2268]
[1704135715802,0.002,43146.0,43142.0,0.2268]
[1704135716053,0.001,43145.0,43142.0,0.2268]
[1704135716403,0.002,43145.0,43142.0,0.2268]
[1704135717303,0.001,43145.0,43142.0,0.2268]
[1704135717723,0.002,43146.0,43142.0,0.2268]
[1704135718341,0.001,43145.0,43142.0,0.2268]
[1704135718757,0.002,43145.0,43142.0,0.2268]
[1704135719129,0.4635,43150.0,43142.0,0.2268]
[1704135719328,0.004,43146.0,43142.0,0.2268]
[1704135719533,0.002,43146.0,43142.0,0.2268]
[1704135720571,0.72455951,43150.0,43142.0,0.2268]
[1704135721084,0.001,43145.0,43142.0,0.2268]
[1704135721692,0.002,43146.0,43142.0,0.2268]
[1704135721933,0.73255951,43150.0,43142.0,0.2278]
[1704135722141,0.74055951,43150.0,43142.0,0.2288]
[1704135722345,0.73255951,43150.0,43142.0,0.2278]
[1704135722551,0.72455951,43150.0,43142.0,0.2268]
[1704135722760,0.001,43145.0,43142.0,0.2268]
[1704135723775,0.002,43145.0,43142.0,0.2268]
[1704135723977,0.001,43145.0,43142.0,0.2268]
[1704135724181,0.001,43145.0,43142.0,0.2278]
[1704135725007,0.001,43145.0,43142.0,0.2268]
[1704135725216,0.002,43145.0,43142.0,0.2268]
[1704135725633,0.463481,43152.0,43142.0,0.2268]
[1704135725845,0.463481,43152.0,43143.0,0.09328685]
[1704135726046,0.001,43145.0,43143.0,0.09328685]
[1704135726258,0.001,43145.0,43142.0,0.2268]
[1704135726486,0.001,43145.0,43144.0,0.21]
[1704135726693,0.001,43145.0,43144.0,0.59193711]
[1704135726891,0.001,43145.0,43144.0,0.54321711]
[1704135727123,0.001,43145.0,43144.0,0.61431711]
[1704135727528,0.001,43145.0,43144.0,0.70760396]
[1704135727736,0.3,43157.0,43147.0,0.2]
[1704135727951,0.3,43157.0,43148.0,0.09328685]
[1704135728159,0.3,43157.0,43148.0,0.31858685]
[1704135728962,0.3,43157.0,43148.0,0.2253]
[1704135729163,0.304,43157.0,43148.0,0.2253]
[1704135729367,0.307,43157.0,43148.0,0.2253]
[1704135729784,0.307,43157.0,43148.0,0.2709]
[1704135730005,0.307,43157.0,43150.0,0.2]
[1704135730006,0.007,43157.0,43150.0,0.2]
[1704135730215,0.007,43157.0,43150.0,0.21]
[1704135730660,0.007,43157.0,43150.0,0.25716]
[1704135730882,0.007,43157.0,43150.0,0.01]
[1704135731089,0.007,43157.0,43149.0,0.01]
[1704135731533,0.003,43157.0,43149.0,0.01]
[1704135731987,0.004,43157.0,43150.0,0.01]
[1704135732205,0.463422,43158.0,43150.0,0.01]
[1704135732416,0.007,43157.0,43150.0,0.01]
[1704135733500,0.004,43157.0,43150.0,0.01]
[1704135733700,0.463422,43158.0,43150.0,0.01]
[1704135733917,0.007,43157.0,43150.0,0.01]
[1704135734510,0.004,43157.0,43150.0,0.01]
[1704135735054,0.004,43157.0,43150.0,0.011]
[1704135735466,0.004,43157.0,43150.0,0.01]
[1704135737146,0.007,43157.0,43148.0,0.3353]
[1704135737355,0.007,43157.0,43150.0,0.01]
[1704135737975,0.004,43157.0,43150.0,0.10328685]
[1704135738182,0.004,43157.0,43150.0,0.01]
[1704135738391,0.007,43157.0,43150.0,0.01]
[1704135738805,0.004,43157.0,43150.0,0.01]
[1704135739001,0.007,43157.0,43150.0,0.01]
[1704135739630,0.400422,43158.0,43150.0,0.009]
[1704135740270,0.463422,43158.0,43150.0,0.009]
[1704135740457,0.001,43160.0,43150.0,0.009]
[1704135740706,0.463422,43158.0,43150.0,0.009]
[1704135740924,0.468422,43158.0,43150.0,0.01]
[1704135741138,0.473422,43158.0,43150.0,0.01]
[1704135741353,0.463422,43158.0,43150.0,0.009]
[1704135741757,0.463422,43158.0,43150.0,0.011]
[1704135741962,0.464422,43158.0,43150.0,0.011]
[1704135742173,0.008,43160.0,43153.0,0.2]
[1704135742381,0.008,43160.0,43154.0,0.2]
[1704135742592,0.008,43160.0,43154.0,0.4242]
[1704135742802,0.3,43165.0,43154.0,0.4242]
[1704135743024,0.001,43163.0,43154.0,0.4242]
[1704135743231,0.005,43158.0,43154.0,0.4242]
[1704135744123,0.001,43162.0,43154.0,0.4242]
[1704135744802,0.001,43163.0,43154.0,0.4242]
[1704135745006,0.001,43163.0,43154.0,0.4322]
[1704135745486,0.463354,43164.0,43154.0,0.4322]
[1704135745707,0.463354,43164.0,43154.0,0.48314]
[1704135745914,0.001,43163.0,43154.0,0.48314]
[1704135746223,0.463354,43164.0,43154.0,0.48314]
[1704135746426,0.463354,43164.0,43155.0,0.04554]
[1704135746624,0.002,43162.0,43155.0,0.04554]
[1704135746905,0.002,43162.0,43158.0,0.2]
[1704135747130,0.001,43168.0,43158.0,0.209]
[1704135747335,0.463297,43169.0,43159.0,0.28088]
[1704135747550,0.002,43162.0,43159.0,0.28088]
[1704135747761,0.005,43164.0,43160.0,0.05094]
[1704135747960,0.463307,43168.0,43160.0,0.05094]
[1704135748231,0.002,43162.0,43160.0,0.05094]
[1704135748430,0.474307,43168.0,43160.0,0.05094]
[1704135748674,0.002,43162.0,43160.0,0.05094]
[1704135749663,0.002,43162.0,43160.0,0.05994]
[1704135749890,0.475307,43168.0,43160.0,0.06094]
[1704135750112,0.475307,43168.0,43161.0,0.045]
[1704135750300,0.475307,43168.0,43160.0,0.05746]
[1704135750464,0.464307,43168.0,43160.0,0.009]
[1704135750692,0.002,43162.0,43160.0,0.009]
[1704135750984,0.004,43162.0,43160.0,0.009]
[1704135751207,0.464307,43168.0,43160.0,0.009]
[1704135751398,0.464307,43168.0,43160.0,0.05616]
[1704135751596,0.486307,43168.0,43160.0,0.05816]
[1704135751735,0.475307,43168.0,43160.0,0.05716]
[1704135752583,0.475307,43168.0,43160.0,0.05616]
[1704135752780,0.463307,43168.0,43160.0,0.05616]
[1704135752987,0.463307,43168.0,43161.0,0.04656]
[1704135753189,0.463307,43168.0,43160.0,0.06332]
[1704135753395,0.463307,43168.0,43160.0,0.013]
[1704135753936,0.001,43167.0,43160.0,0.01]
[1704135754716,0.474307,43168.0,43160.0,0.01]
[1704135754924,0.469307,43168.0,43160.0,0.01]
[1704135755480,0.468307,43168.0,43160.0,0.01]
[1704135755696,0.001,43167.0,43159.0,0.3339]
[1704135756082,0.004,43167.0,43159.0,0.3339]
[1704135756272,0.007,43167.0,43159.0,0.3339]
[1704135756454,0.004,43167.0,43159.0,0.3339]
[1704135756635,0.001,43167.0,43159.0,0.3339]
[1704135756845,0.004,43167.0,43159.0,0.3339]
[1704135757675,0.007,43167.0,43159.0,0.3339]
[1704135758232,0.006,43167.0,43160.0,0.009]
[1704135758788,0.006,43167.0,43159.0,0.3339]
[1704135759012,0.007,43167.0,43159.0,0.3339]
[1704135759219,0.001,43167.0,43159.0,0.3339]
[1704135759443,0.007,43167.0,43159.0,0.3339]
[1704135759648,0.004,43167.0,43159.0,0.3339]
[1704135759853,0.001,43167.0,43160.0,0.009]
[1704135760127,0.003,43167.0,43160.0,0.009]
[1704135760343,0.006,43167.0,43160.0,0.009]
[1704135760785,0.464307,43168.0,43160.0,0.009]
[1704135761207,0.003,43167.0,43160.0,0.009]
[1704135761414,0.004,43167.0,43160.0,0.009]
[1704135761624,0.007,43167.0,43160.0,0.009]
[1704135761971,0.007,43167.0,43159.0,0.0447]
[1704135761972,0.001,43164.0,43159.0,0.0447]
[1704135762188,0.46339,43161.0,43153.0,0.2277]
[1704135763214,0.46339,43161.0,43159.0,0.001]
[1704135763636,0.46439,43161.0,43153.0,0.2347]
[1704135764046,0.46439,43161.0,43153.0,0.2417]
[1704135764047,0.46539,43161.0,43153.0,0.2417]
[1704135767425,0.46539,43161.0,43155.0,0.009]
[1704135769065,0.46339,43161.0,43155.0,0.009]
[1704135769269,0.46439,43161.0,43155.0,0.021]
[1704135769642,0.46439,43161.0,43155.0,0.012]
[1704135769840,0.46439,43161.0,43155.0,0.021]
[1704135770046,0.46439,43161.0,43155.0,0.015]
[1704135770265,0.001,43163.0,43155.0,0.109]
[1704135770459,0.1856,43166.0,43156.0,0.057]
[1704135770460,0.002,43161.0,43156.0,0.057]
[1704135770960,0.002,43161.0,43157.0,0.2233]
[1704135771167,0.002,43161.0,43158.0,0.1]
[1704135771369,0.002,43161.0,43159.0,0.1]
[1704135771589,0.002,43161.0,43159.0,0.14806]
[1704135771856,0.002,43161.0,43160.0,0.04836]
[1704135772069,0.001,43167.0,43160.0,0.04836]
[1704135772282,0.001,43167.0,43160.0,0.14164685]
[1704135772496,0.003,43163.0,43161.0,0.2327]
[1704135772917,0.001,43167.0,43161.0,0.2327]
[1704135773330,0.003,43167.0,43161.0,0.2327]
[1704135774421,0.005,43167.0,43161.0,0.2327]
[1704135775933,0.004,43167.0,43166.0,0.2]
[1704135776572,0.004,43167.0,43166.0,0.25154]
[1704135776783,0.002,43167.0,43166.0,0.25154]
[1704135776996,0.463202,43178.0,43167.0,0.1]
[1704135777211,0.463202,43178.0,43168.0,0.09328685]
[1704135777445,0.02826974,43178.0,43168.0,0.09328685]
[1704135777681,0.3,43177.0,43168.0,0.09328685]
[1704135777958,0.3,43178.0,43168.0,0.09328685]
[1704135778217,0.763202,43178.0,43168.0,0.09328685]
[1704135778478,0.001,43176.0,43168.0,0.09328685]
[1704135778688,0.763202,43178.0,43167.0,0.1]
[1704135779133,0.001,43176.0,43167.0,0.15128]
[1704135779534,0.001,43176.0,43168.0,0.0462]
[1704135779779,0.768202,43178.0,43168.0,0.0462]
[1704135779989,0.773202,43178.0,43168.0,0.0462]
[1704135780257,0.773205,43178.0,43168.0,0.0462]
[1704135780514,0.763205,43178.0,43168.0,0.0462]
[1704135780756,0.002,43176.0,43168.0,0.0462]
[1704135780979,0.002,43176.0,43175.0,0.009]
[1704135781216,0.002,43176.0,43173.0,0.1]
[1704135781217,0.002,43176.0,43173.0,0.109]
[1704135781457,0.002,43176.0,43174.0,0.2298]
[1704135781686,0.004,43176.0,43174.0,0.2298]
[1704135781921,0.001,43182.0,43175.0,0.009]
[1704135782164,0.005,43178.0,43175.0,0.009]
[1704135782380,0.005,43178.0,43175.0,0.015]
[1704135782586,0.005,43178.0,43175.0,0.009]
[1704135783201,0.001,43182.0,43175.0,0.009]
[1704135783483,0.001,43176.0,43175.0,0.009]
[1704135783915,0.001,43176.0,43175.0,0.012]
[1704135785219,0.001,43176.0,43175.0,0.18634]
[1704135785652,0.464116,43186.0,43175.0,0.19234]
[1704135785653,0.463116,43186.0,43175.0,0.19234]
[1704135785906,0.464116,43186.0,43175.0,0.19534]
[1704135786172,0.464116,43186.0,43176.0,0.06084]
[1704135786384,0.463116,43186.0,43176.0,0.06084]
[1704135786801,0.463124,43185.0,43176.0,0.06084]
[1704135787464,0.001,43183.0,43176.0,0.04596]
[1704135787677,0.001,43182.0,43176.0,0.04696]
[1704135787886,0.001,43182.0,43176.0,0.001]
[1704135788741,0.001,43182.0,43175.0,0.109]
[1704135788956,0.001,43182.0,43175.0,0.11]
[1704135789137,0.001,43183.0,43176.0,0.001]
[1704135789369,0.001,43182.0,43176.0,0.001]
[1704135789578,0.004,43182.0,43175.0,0.101]
[1704135790017,0.004,43182.0,43175.0,0.1]
[1704135790205,0.004,43182.0,43179.0,0.1]
[1704135790206,0.006,43182.0,43179.0,0.1]
[1704135790552,0.006,43182.0,43179.0,0.3241]
[1704135790788,0.006,43182.0,43180.0,0.05166]
[1704135791434,0.003,43182.0,43180.0,0.05166]
[1704135791844,0.464094,43188.0,43179.0,0.37498]
[1704135792057,0.464094,43188.0,43179.0,0.37598]
[1704135792289,0.003,43182.0,43179.0,0.37598]
[1704135792545,0.003,43182.0,43180.0,0.05064]
[1704135792771,0.003,43182.0,43180.0,0.05364]
[1704135792983,0.003,43182.0,43179.0,0.3724]
[1704135793433,0.464094,43188.0,43179.0,0.3754]
[1704135793636,0.470094,43188.0,43179.0,0.3734]
[1704135794039,0.470094,43188.0,43180.0,0.04746]
[1704135794429,0.470094,43188.0,43179.0,0.37604]
[1704135794644,0.470094,43188.0,43180.0,0.04614]
[1704135795095,0.470094,43188.0,43180.0,0.003]
[1704135795215,0.470094,43188.0,43179.0,0.37484]
[1704135795423,0.464094,43188.0,43179.0,0.37384]
[1704135795629,0.466094,43188.0,43179.0,0.37384]
[1704135795832,0.464094,43188.0,43180.0,0.0459]
[1704135796239,0.466094,43188.0,43179.0,0.37492]
[1704135796455,0.464094,43188.0,43180.0,0.04518]
[1704135796668,0.469094,43188.0,43180.0,0.04518]
[1704135796897,0.469094,43188.0,43179.0,0.37492]
[1704135797115,0.465094,43188.0,43180.0,0.04506]
[1704135797328,0.004,43188.0,43181.0,0.1]
[1704135797539,0.004,43188.0,43180.0,0.25406]
[1704135797744,0.004,43188.0,43181.0,0.05034]
[1704135798142,0.002,43188.0,43181.0,0.05034]
[1704135798336,0.004,43188.0,43181.0,0.05034]
[1704135798571,0.003,43188.0,43181.0,0.05034]
[1704135798803,0.003,43188.0,43179.0,0.3331]
[1704135798804,0.001,43188.0,43179.0,0.3241]
[1704135799045,0.463104,43187.0,43179.0,0.3331]
[1704135799521,0.005,43188.0,43179.0,0.3331]
[1704135799522,0.003,43188.0,43179.0,0.2331]
[1704135799773,0.393118,43186.0,43179.0,0.2241]
[1704135800246,0.393118,43186.0,43179.0,0.2331]
[1704135800763,0.393118,43186.0,43179.0,0.2241]
[1704135801482,0.393118,43186.0,43179.0,0.2331]
[1704135802026,0.393118,43186.0,43179.0,0.2261]
[1704135807477,0.393118,43186.0,43180.0,0.009]
[1704135808757,0.393118,43186.0,43180.0,0.011]
[1704135812101,0.393118,43186.0,43180.0,0.002]
[1704135812548,0.001,43185.0,43180.0,0.002]
[1704135813424,0.001,43185.0,43180.0,0.0476]
[1704135814500,0.19,43191.0,43180.0,0.0466]
[1704135814718,0.001,43185.0,43180.0,0.13988685]
[1704135814931,0.001,43185.0,43180.0,0.0486]
[1704135815147,0.001,43185.0,43180.0,0.0516]
[1704135815395,0.463123,43186.0,43180.0,0.0516]
[1704135815609,0.001,43185.0,43180.0,0.0516]
[1704135816261,0.001,43185.0,43180.0,0.0486]
[1704135816740,0.001,43185.0,43180.0,0.0496]
[1704135817180,0.001,43185.0,43180.0,0.004]
[1704135817883,0.001,43185.0,43180.0,0.003]
[1704135818109,0.464148,43183.0,43180.0,0.006]
[1704135818331,0.001,43182.0,43180.0,0.006]
[1704135819003,0.001,43182.0,43180.0,0.003]
[1704135819238,0.001,43182.0,43176.0,0.2302]
[1704135819411,0.001,43182.0,43180.0,0.012]
[1704135819632,0.001,43182.0,43180.0,0.006]
[1704135820037,0.001,43182.0,43180.0,0.013]
[1704135820038,0.002,43182.0,43180.0,0.013]
[1704135820824,0.002,43182.0,43180.0,0.007]
[1704135821039,0.003,43182.0,43180.0,0.014]
[1704135822535,0.002,43182.0,43180.0,0.014]
[1704135822760,0.002,43182.0,43181.0,0.05706]
[1704135822992,0.002,43182.0,43181.0,0.29186]
[1704135823840,0.001,43182.0,43181.0,0.29186]
[1704135824049,0.002,43182.0,43181.0,0.29886]
[1704135824730,0.001,43182.0,43181.0,0.29886]
[1704135824979,0.002,43182.0,43181.0,0.30586]
[1704135833626,0.002,43182.0,43181.0,0.40586]
[1704135834203,0.002,43182.0,43181.0,0.83907711]
[1704135834418,0.002,43182.0,43181.0,1.24377793]
[1704135834642,0.002,43182.0,43181.0,1.21614121]
[1704135834916,0.002,43182.0,43181.0,1.24381886]
[1704135835116,0.001,43182.0,43181.0,1.23681886]
[1704135835325,0.463018,43195.0,43186.0,0.1]
[1704135835755,0.463018,43195.0,43187.0,0.27578]
[1704135836176,0.463018,43195.0,43188.0,0.045]
[1704135836621,0.463018,43195.0,43187.0,0.2219]
[1704135836818,0.001,43193.0,43187.0,0.2239]
[1704135837648,0.001,43193.0,43188.0,0.002]
[1704135838283,0.463018,43195.0,43187.0,0.2666]
[1704135838491,0.004,43199.0,43195.0,0.1]
[1704135838901,0.004,43199.0,43195.0,0.3245]
[1704135839101,0.004,43199.0,43195.0,0.37082]
[1704135839312,0.004,43199.0,43195.0,0.3245]
[1704135839542,0.004,43199.0,43195.0,0.37322]
[1704135839968,0.004,43199.0,43195.0,0.37822]
[1704135840655,0.004,43199.0,43196.0,0.05544]
[1704135841481,0.004,43199.0,43197.0,0.1]
[1704135842100,0.004,43199.0,43197.0,0.14974]
[1704135842505,0.004,43199.0,43197.0,0.1]
[1704135842723,0.004,43199.0,43197.0,0.105]
[1704135844015,0.004,43199.0,43197.0,0.11]
[1704135844232,0.004,43199.0,43197.0,0.01]
[1704135848241,0.004,43199.0,43198.0,0.04464]
[1704135849398,0.004,43199.0,43197.0,0.005]
[1704135849620,0.004,43199.0,43198.0,0.005]
[1704135850468,0.004,43199.0,43196.0,0.04578]
[1704135851298,0.004,43199.0,43198.0,0.005]
[1704135851753,0.004,43199.0,43197.0,0.005]